bitfinex/quotes_BTCUSD_20260308
["timestamp","ask_amount","ask_price","bid_price","bid_amount"]
[1772930696684,1e-08,67281.0,67262.0,0.00011993]
[1772930696887,0.02467289,67306.0,67277.0,0.95276316]
[1772930697083,0.02467289,67306.0,67278.0,0.00787096]
[1772930697283,0.07450698,67307.0,67279.0,0.00787096]
[1772930697284,0.02467289,67304.0,67279.0,0.00787096]
[1772930697454,0.02467289,67304.0,67280.0,0.00148]
[1772930697651,0.02467289,67304.0,67280.0,0.00787096]
[1772930698107,0.02467289,67304.0,67289.0,0.17738404]
[1772930698349,0.00022001,67307.0,67293.0,0.00631596]
[1772930699374,0.00034014,67307.0,67293.0,0.00631596]
[1772930700336,0.02467289,67318.0,67295.0,0.00631596]
[1772930700538,0.02467289,67318.0,67297.0,0.00631596]
[1772930701816,0.02467289,67317.0,67291.0,0.19180187]
[1772930702014,0.0226116,67306.0,67293.0,0.00148]
[1772930702410,0.02429716,67304.0,67293.0,0.00148]
[1772930702616,0.02429716,67304.0,67292.0,0.02669403]
[1772930702780,0.02429716,67304.0,67293.0,0.00148]
[1772930702979,0.02429716,67304.0,67292.0,0.07430303]
[1772930703933,0.02429716,67304.0,67287.0,0.00148]
[1772930704133,0.02429716,67304.0,67283.0,0.07431287]
[1772930704362,0.02429716,67304.0,67283.0,0.07579287]
[1772930704494,0.07429089,67303.0,67283.0,0.07579287]
[1772930704689,0.02429716,67302.0,67283.0,0.07579287]
[1772930705091,0.02429716,67302.0,67283.0,0.07431287]
[1772930705952,0.02429716,67302.0,67282.0,0.0016729]
[1772930706130,0.02429716,67302.0,67283.0,0.07431287]
[1772930706472,0.02429716,67302.0,67283.0,0.07579287]
[1772930706644,0.02429716,67300.0,67282.0,0.07598674]
[1772930706814,0.02429716,67298.0,67282.0,0.07598674]
[1772930707018,0.024144,67298.0,67282.0,0.07450674]
[1772930707317,0.024144,67298.0,67282.0,0.07598674]
[1772930707519,0.024144,67298.0,67282.0,0.07450674]
[1772930707744,0.02399087,67298.0,67283.0,0.00148]
[1772930708575,0.02399087,67298.0,67282.0,0.07450674]
[1772930708791,0.07429751,67297.0,67284.0,0.07431187]
[1772930708993,0.07429751,67297.0,67285.0,0.00148]
[1772930709193,0.07429751,67297.0,67282.0,0.0003929]
[1772930709360,0.02429716,67296.0,67280.0,0.00148]
[1772930709559,0.02414397,67296.0,67280.0,0.07579523]
[1772930709728,0.02399077,67296.0,67280.0,0.07579523]
[1772930709936,0.02399077,67296.0,67280.0,0.07431523]
[1772930710137,0.02399077,67296.0,67280.0,0.07579523]
[1772930710692,0.02411079,67296.0,67280.0,0.07579523]
[1772930710889,0.00012002,67296.0,67280.0,0.07579523]
[1772930711090,0.00012002,67296.0,67280.0,0.07431523]
[1772930711665,0.00012002,67296.0,67280.0,0.07579523]
[1772930712498,0.00012002,67296.0,67280.0,0.07431523]
[1772930712696,0.00012002,67296.0,67280.0,0.07579523]
[1772930713080,0.00012002,67296.0,67280.0,0.00148]
[1772930713465,0.00012002,67296.0,67278.0,0.07431629]
[1772930713684,0.00012002,67296.0,67279.0,0.00148]
[1772930714085,0.00012002,67296.0,67280.0,0.00148]
[1772930714365,0.07429751,67297.0,67280.0,0.00148]
[1772930714588,0.07429751,67297.0,67280.0,0.00160002]
[1772930714787,0.07429751,67297.0,67280.0,0.00012002]
[1772930715481,0.07429751,67297.0,67280.0,0.00160002]
[1772930715897,0.07429751,67297.0,67280.0,0.00012002]
[1772930716101,0.07429751,67297.0,67280.0,0.00160002]
[1772930716701,0.07429751,67297.0,67280.0,0.00180002]
[1772930716920,0.07429751,67297.0,67280.0,0.00032002]
[1772930717104,0.07429751,67297.0,67281.0,0.07431518]
[1772930717475,0.00015,67291.0,67281.0,0.07431518]
[1772930717706,0.07429751,67297.0,67281.0,0.07431518]
[1772930722007,0.07709751,67297.0,67281.0,0.07431518]
[1772930723526,0.07709751,67297.0,67281.0,0.07451518]
[1772930724130,0.07709751,67297.0,67282.0,0.02576054]
[1772930725149,0.07709751,67297.0,67283.0,0.00631596]
[1772930725354,0.07709751,67297.0,67286.0,0.02576054]
[1772930727752,0.07694433,67297.0,67286.0,0.02576054]
[1772930730798,0.07716434,67297.0,67286.0,0.02576054]
[1772930731017,0.07716434,67297.0,67282.0,0.11749855]
[1772930731206,0.07716434,67297.0,67283.0,0.11749855]
[1772930732475,0.07716434,67297.0,67282.0,0.11749855]
[1772930733066,0.07716434,67297.0,67283.0,0.11749855]
[1772930735035,0.07716434,67297.0,67273.0,0.17758404]
[1772930735184,0.07716434,67297.0,67273.0,0.0002]
[1772930735185,0.07728438,67297.0,67273.0,0.0002]
[1772930736308,0.00067696,67296.0,67273.0,0.0002]
[1772930736606,0.00067696,67296.0,67268.0,0.03171054]
[1772930737361,0.02437108,67289.0,67261.0,0.0001929]
[1772930737565,0.02437108,67287.0,67261.0,0.0001929]
[1772930737778,0.02437108,67287.0,67261.0,0.0002084]
[1772930737925,0.02437108,67285.0,67261.0,0.0002084]
[1772930738872,0.02437108,67285.0,67261.0,0.03124982]
[1772930739908,0.07430303,67294.0,67268.0,0.17738404]
[1772930740076,0.07430303,67294.0,67270.0,0.02472546]
[1772930740239,0.07430303,67294.0,67274.0,0.02472546]
[1772930740578,0.07430303,67294.0,67278.0,0.02472546]
[1772930740886,0.07430303,67294.0,67283.0,0.00631596]
[1772930741074,0.07430303,67294.0,67284.0,0.02472546]
[1772930742261,0.07430303,67294.0,67284.0,0.03104142]
[1772930744433,0.07430303,67294.0,67284.0,0.02472546]
[1772930744634,0.07430303,67294.0,67275.0,0.02472546]
[1772930744635,0.00471647,67293.0,67275.0,0.02472546]
[1772930744932,0.00471647,67293.0,67277.0,0.00148]
[1772930745301,0.00471647,67293.0,67275.0,0.02472546]
[1772930745489,0.00471647,67293.0,67275.0,0.02620546]
[1772930745834,0.00471647,67290.0,67274.0,0.00035]
[1772930746033,0.00471647,67288.0,67274.0,0.00035]
[1772930746535,0.07430855,67287.0,67274.0,0.00035]
[1772930746843,0.00471647,67286.0,67274.0,0.00035]
[1772930748040,0.00471647,67286.0,67269.0,0.02472546]
[1772930748594,0.00471647,67284.0,67269.0,0.02472546]
[1772930748941,0.07431076,67285.0,67269.0,0.02472546]
[1772930748942,0.00471647,67282.0,67269.0,0.02472546]
[1772930750339,0.00471647,67282.0,67267.0,0.0002]
[1772930750919,0.00471647,67280.0,67267.0,0.0002]
[1772930751719,0.00471647,67280.0,67269.0,0.0002]
[1772930751917,0.00471647,67280.0,67267.0,0.0002]
[1772930752121,0.00471647,67280.0,67262.0,0.0004084]
[1772930752340,0.00471647,67278.0,67262.0,0.0004084]
[1772930752695,0.00471647,67276.0,67262.0,0.0004084]
[1772930753234,0.00471647,67274.0,67262.0,0.0004084]
[1772930753847,0.00456325,67274.0,67262.0,0.00052833]
[1772930754844,0.07432181,67275.0,67265.0,0.02472546]
[1772930755043,0.07432181,67279.0,67267.0,0.02951976]
[1772930755547,0.00148,67278.0,67267.0,0.02951976]
[1772930755970,0.00148,67277.0,67267.0,0.02951976]
[1772930756502,0.07432181,67279.0,67267.0,0.02951976]
[1772930756661,0.00148,67278.0,67267.0,0.02951976]
[1772930757063,0.0743207,67276.0,67267.0,0.02951976]
[1772930757704,0.00148,67275.0,67267.0,0.02951976]
[1772930758061,0.00148,67275.0,67262.0,0.00052833]
[1772930758298,0.00148,67275.0,67263.0,0.02472546]
[1772930759030,0.00471647,67274.0,67263.0,0.02472546]
[1772930759211,0.07432402,67273.0,67263.0,0.02472546]
[1772930759395,0.0741708,67273.0,67263.0,0.02472546]
[1772930759589,0.0741708,67273.0,67262.0,0.00052833]
[1772930759779,0.00471647,67272.0,67262.0,0.00052833]
[1772930760377,0.00456325,67272.0,67262.0,0.00052833]
[1772930761709,0.07432623,67271.0,67262.0,0.00052833]
[1772930764144,0.01625843,67271.0,67265.0,0.02686709]
[1772930764344,0.01625843,67271.0,67266.0,0.00479099]
[1772930764345,0.04529233,67271.0,67266.0,0.00479099]
[1772930764515,0.07432623,67271.0,67266.0,0.00479099]
[1772930764718,0.07432623,67271.0,67262.0,0.00052833]
[1772930765035,0.07417305,67271.0,67263.0,0.00479099]
[1772930766314,0.0743207,67276.0,67263.0,0.00479099]
[1772930768381,0.0743207,67276.0,67264.0,0.00466463]
[1772930768589,0.0743207,67276.0,67263.0,0.07433456]
[1772930768590,0.04584398,67276.0,67265.0,0.02337453]
[1772930768790,0.07432052,67277.0,67266.0,0.00466463]
[1772930770669,0.07431834,67279.0,67267.0,0.07433065]
[1772930770877,0.07431834,67279.0,67268.0,0.00466463]
[1772930771971,0.07416512,67279.0,67268.0,0.00466463]
[1772930772179,0.07438513,67279.0,67268.0,0.00466463]
[1772930773312,0.03021352,67278.0,67265.0,0.07581195]
[1772930773673,0.03021352,67278.0,67264.0,0.00466463]
[1772930773674,0.03021352,67278.0,67262.0,0.00052833]
[1772930773878,0.03021352,67274.0,67262.0,0.00052833]
[1772930774081,0.03018287,67272.0,67262.0,0.00200833]
[1772930774518,0.03018287,67272.0,67262.0,0.00052833]
[1772930774680,0.03018287,67272.0,67262.0,0.00200833]
[1772930775275,0.03018287,67270.0,67262.0,0.00200833]
[1772930775715,0.03018287,67270.0,67262.0,0.00052833]
[1772930778219,0.07432844,67269.0,67262.0,0.00052833]
[1772930778377,0.10451131,67269.0,67262.0,0.00052833]
[1772930780336,0.1043581,67269.0,67262.0,0.00052833]
[1772930780535,0.10420488,67269.0,67262.0,0.00052833]
[1772930782933,0.03018287,67268.0,67262.0,0.00052833]
[1772930784841,0.10451352,67267.0,67262.0,0.00052833]
[1772930786846,0.07433286,67265.0,67262.0,0.00052833]
[1772930787004,0.0740264,67265.0,67262.0,0.00052833]
[1772930787344,0.10420927,67265.0,67262.0,0.00052833]
[1772930790442,0.10405604,67265.0,67262.0,0.00052833]
[1772930790839,0.07387317,67265.0,67262.0,0.00052833]
[1772930791039,0.07387317,67265.0,67248.0,0.0002]
[1772930791040,0.03018287,67262.0,67254.0,0.00148]
[1772930791240,0.03487839,67260.0,67252.0,0.00148]
[1772930791649,0.03487839,67260.0,67248.0,0.00486463]
[1772930791825,0.03487839,67260.0,67252.0,0.00148]
[1772930792902,0.03014287,67256.0,67248.0,0.0002]
[1772930793033,0.03014287,67256.0,67242.0,0.00486463]
[1772930793234,0.03487839,67256.0,67243.0,0.00148]
[1772930793635,0.03487839,67256.0,67244.0,0.00148]
[1772930794159,0.03014287,67254.0,67244.0,0.00148]
[1772930794333,0.00473552,67253.0,67242.0,0.0002]
[1772930794537,0.03014287,67252.0,67243.0,0.00148]
[1772930794756,0.1044912,67251.0,67243.0,0.00148]
[1772930795171,0.1044912,67251.0,67242.0,0.0002]
[1772930795336,0.1044912,67251.0,67243.0,0.00148]
[1772930798028,0.1044912,67251.0,67244.0,0.0002]
[1772930799803,0.1044912,67251.0,67245.0,0.00148]
[1772930800203,0.1044912,67251.0,67244.0,0.0002]
[1772930800401,0.1044912,67251.0,67245.0,0.00148]
[1772930800735,0.1044912,67251.0,67244.0,0.0002]
[1772930800919,0.1044912,67251.0,67245.0,0.00148]
[1772930802260,0.1044912,67251.0,67244.0,0.0002]
[1772930802475,0.03014287,67250.0,67245.0,0.00148]
[1772930802660,0.02984687,67248.0,67245.0,0.00128]
[1772930802865,0.02984687,67248.0,67245.0,0.00148]
[1772930803412,0.02984687,67248.0,67244.0,0.00148]
[1772930803618,0.02984687,67248.0,67237.0,0.0002]
[1772930803850,0.07435275,67247.0,67237.0,0.0002]
[1772930804023,0.02891887,67244.0,67237.0,0.0002]
[1772930804457,0.02891887,67244.0,67240.0,0.00015]
[1772930806027,0.02884887,67242.0,67235.0,0.0003634]
[1772930808651,0.07435939,67241.0,67235.0,0.0003634]
[1772930809063,0.02884887,67240.0,67235.0,0.0003634]
[1772930809957,0.02884887,67240.0,67235.0,0.00076333]
[1772930811351,0.02884887,67238.0,67235.0,0.00076333]
[1772930812176,0.02884887,67238.0,67232.0,0.00148]
[1772930812329,0.0292488,67238.0,67232.0,0.00148]
[1772930812957,0.0292488,67238.0,67235.0,0.0002]
[1772930813155,0.07436381,67237.0,67235.0,0.0002]
[1772930813541,0.07436381,67237.0,67230.0,0.0002]
[1772930813747,0.02869621,67236.0,67230.0,0.00168]
[1772930813949,0.02869621,67236.0,67230.0,0.0002]
[1772930814361,0.02869621,67236.0,67228.0,0.00168]
[1772930814568,0.03354973,67236.0,67228.0,0.00168]
[1772930815421,0.02869621,67234.0,67228.0,0.0002]
[1772930815776,0.02869621,67234.0,67227.0,0.0002]
[1772930815999,0.02869621,67234.0,67227.0,1e-08]
[1772930816401,0.02869621,67234.0,67221.0,0.0047373]
[1772930816616,0.00485352,67231.0,67214.0,0.00575]
[1772930816821,0.00148,67231.0,67215.0,0.0047373]
[1772930817188,0.00148,67231.0,67217.0,0.0047373]
[1772930817662,0.07437156,67230.0,67217.0,0.0047373]
[1772930818174,0.02865621,67229.0,67217.0,0.0047373]
[1772930820259,0.07437377,67228.0,67217.0,0.0047373]
[1772930820769,0.07437377,67228.0,67227.0,0.0002]
[1772930820967,0.10302998,67228.0,67220.0,0.0002]
[1772930821167,0.02865621,67227.0,67224.0,0.00015]
[1772930821934,0.02865621,67227.0,67220.0,0.0002]
[1772930822135,0.07437598,67226.0,67220.0,0.0002]
[1772930822448,0.03341794,67225.0,67215.0,0.00148]
[1772930822638,0.03341794,67225.0,67214.0,0.00575]
[1772930822849,0.03341794,67225.0,67214.0,0.00723]
[1772930823278,0.03341794,67225.0,67215.0,0.00148]
[1772930823646,0.03341794,67225.0,67214.0,0.00575]
[1772930823846,0.03341794,67225.0,67215.0,0.00148]
[1772930824252,0.03341794,67223.0,67213.0,0.00148]
[1772930824692,0.02865621,67223.0,67213.0,0.00148]
[1772930824902,0.03341794,67223.0,67213.0,0.00148]
[1772930825503,0.03341794,67223.0,67212.0,0.00148]
[1772930826511,0.02865621,67221.0,67212.0,0.00148]
[1772930827540,0.02865621,67221.0,67211.0,0.0002149]
[1772930828122,0.02865621,67221.0,67215.0,0.0002]
[1772930828663,0.02865621,67219.0,67215.0,0.0002]
[1772930829854,0.03065621,67219.0,67215.0,0.0002]
[1772930830578,0.07438483,67218.0,67211.0,0.0002149]
[1772930830798,0.02861621,67217.0,67211.0,0.0002149]
[1772930831345,0.07438483,67218.0,67188.0,0.00451967]
[1772930831346,0.00461004,67216.0,67188.0,0.00451967]
[1772930831545,0.00461004,67212.0,67193.0,0.00148]
[1772930831785,0.02861621,67211.0,67194.0,0.00451967]
[1772930832014,0.02861621,67211.0,67194.0,0.00456729]
[1772930832362,0.00148,67216.0,67194.0,0.00456729]
[1772930832363,0.02861621,67209.0,67194.0,0.00456729]
[1772930832726,0.02861621,67207.0,67194.0,0.00456729]
[1772930832929,0.02861621,67207.0,67195.0,0.00148]
[1772930833221,0.02861621,67207.0,67194.0,0.00456729]
[1772930833421,0.02861621,67207.0,67196.0,0.00148]
[1772930833624,0.02861621,67205.0,67194.0,4.762e-05]
[1772930833828,0.0743959,67208.0,67194.0,4.762e-05]
[1772930833829,0.02861621,67203.0,67195.0,0.00148]
[1772930833970,0.02861621,67203.0,67196.0,0.00148]
[1772930834383,0.02861621,67203.0,67195.0,0.00148]
[1772930834914,0.02832021,67201.0,67195.0,0.00148]
[1772930835350,0.02832021,67201.0,67194.0,4.762e-05]
[1772930835562,0.00461004,67200.0,67187.0,0.00575]
[1772930835726,0.02832021,67197.0,67187.0,0.00587027]
[1772930836051,0.03293025,67197.0,67187.0,0.00587027]
[1772930836864,0.03293025,67197.0,67186.0,0.03002565]
[1772930836865,0.0535802,67196.0,67186.0,0.00148]
[1772930837067,0.02832021,67195.0,67187.0,0.00148]
[1772930837273,0.02832021,67195.0,67186.0,0.00456724]
[1772930837444,0.02832021,67195.0,67187.0,0.00148]
[1772930837644,0.02817021,67195.0,67186.0,0.00152757]
[1772930838446,0.02817021,67195.0,67179.0,0.0002]
[1772930838649,0.02828069,67193.0,67181.0,0.00148]
[1772930838847,0.03289073,67193.0,67181.0,0.00148]
[1772930839052,0.02828069,67191.0,67181.0,0.00148]
[1772930839487,0.07440586,67199.0,67180.0,0.00451967]
[1772930839693,0.10268655,67199.0,67183.0,0.00451967]
[1772930839902,0.02828069,67198.0,67183.0,0.00451967]
[1772930841003,0.03289073,67194.0,67179.0,0.00483971]
[1772930841204,0.00461004,67193.0,67179.0,0.00032004]
[1772930841404,0.02798469,67192.0,67180.0,0.00148]
[1772930841630,0.02798469,67192.0,67181.0,0.00451967]
[1772930841997,0.07441029,67195.0,67181.0,0.00451967]
[1772930842796,0.02798469,67194.0,67182.0,0.00148]
[1772930843020,0.02798469,67194.0,67182.0,0.00599967]
[1772930843216,0.02798469,67192.0,67183.0,0.00451967]
[1772930845219,0.07441472,67191.0,67183.0,0.00451967]
[1772930846134,0.07441472,67191.0,67184.0,0.00451967]
[1772930846338,0.07441472,67191.0,67184.0,0.00599967]
[1772930846922,0.07441472,67191.0,67185.0,0.00148]
[1772930848753,0.07441472,67191.0,67186.0,0.00451967]
[1772930848953,0.10239941,67191.0,67186.0,0.00451967]
[1772930849168,0.02798469,67190.0,67186.0,0.00451967]
[1772930850541,0.07441694,67189.0,67186.0,0.00451967]
[1772930851466,0.07441694,67189.0,67185.0,0.00148]
[1772930851675,0.10240163,67189.0,67185.0,0.00599967]
[1772930852051,0.10240163,67189.0,67186.0,0.00451967]
[1772930852219,0.10240163,67189.0,67185.0,0.00148]
[1772930852420,0.10240163,67189.0,67185.0,0.00599967]
[1772930852947,0.10240163,67189.0,67185.0,0.00148]
[1772930853148,0.10240163,67189.0,67185.0,0.00599967]
[1772930853571,0.07441694,67189.0,67186.0,0.00451967]
[1772930854444,0.07426694,67189.0,67186.0,0.00451967]
[1772930854962,0.07426694,67189.0,67187.0,0.00148]
[1772930855610,0.07441694,67190.0,67187.0,0.00148]
[1772930855903,0.02798469,67189.0,67187.0,0.00148]
[1772930856229,0.02798469,67189.0,67188.0,0.00148]
[1772930858266,0.10240163,67189.0,67188.0,0.00148]
[1772930859922,0.07441694,67189.0,67188.0,0.00148]
[1772930861206,0.10181548,67190.0,67188.0,0.00148]
[1772930861814,0.07441694,67190.0,67187.0,0.00148]
[1772930862165,0.02739854,67189.0,67187.0,0.00148]
[1772930862945,0.02739854,67189.0,67186.0,0.00148]
[1772930863143,0.07441472,67191.0,67187.0,0.00460997]
[1772930863863,0.10181326,67191.0,67186.0,0.00148]
[1772930864231,0.10181326,67191.0,67187.0,0.00460997]
[1772930864752,0.07441472,67191.0,67187.0,0.00460997]
[1772930865794,0.07463392,67192.0,67187.0,0.00460997]
[1772930865968,0.07463392,67192.0,67189.0,0.00460997]
[1772930867209,0.00022001,67199.0,67190.0,0.00460997]
[1772930867210,0.07440908,67198.0,67190.0,0.00460997]
[1772930867615,0.02739854,67195.0,67175.0,0.07483199]
[1772930867839,0.07440908,67198.0,67175.0,0.07483199]
[1772930867840,0.00283721,67192.0,67180.0,0.00148]
[1772930868029,0.02739854,67191.0,67180.0,0.00148]
[1772930869465,0.07441583,67190.0,67178.0,0.00486897]
[1772930869594,0.02739854,67189.0,67181.0,0.00148]
[1772930871568,0.07441805,67188.0,67181.0,0.00148]
[1772930871762,0.10181659,67188.0,67180.0,0.0002]
[1772930871971,0.02739854,67187.0,67182.0,0.00148]
[1772930872707,0.02739854,67187.0,67183.0,0.00148]
[1772930873340,0.02739854,67187.0,67180.0,0.0002]
[1772930873539,0.02739854,67187.0,67181.0,0.00148]
[1772930874148,0.07442026,67186.0,67180.0,0.0002]
[1772930874356,0.1018188,67186.0,67181.0,0.00148]
[1772930875321,0.1018188,67186.0,67181.0,0.00608997]
[1772930875465,0.1018188,67186.0,67182.0,0.00460997]
[1772930876497,0.07442026,67186.0,67182.0,0.00460997]
[1772930878355,0.00022001,67191.0,67183.0,0.00460997]
[1772930878554,0.07441044,67195.0,67183.0,0.00460997]
[1772930879033,0.00015,67207.0,67184.0,1.573907]
[1772930879233,0.07454811,67207.0,67187.0,0.00460997]
[1772930879444,0.07454811,67207.0,67189.0,0.00460997]
[1772930880320,0.02739854,67206.0,67191.0,0.00460997]
[1772930880549,0.02739854,67206.0,67192.0,0.00148]
[1772930880550,0.03023575,67206.0,67192.0,0.00148]
[1772930880757,0.00022001,67198.0,67192.0,0.00148]
[1772930880953,0.00022001,67198.0,67193.0,0.00148]
[1772930881356,0.00022001,67198.0,67190.0,0.06427996]
[1772930881357,0.00022001,67198.0,67194.0,0.00148]
[1772930881757,0.00022001,67198.0,67190.0,0.05966999]
[1772930881961,0.00022001,67198.0,67196.0,0.00490139]
[1772930882205,0.00022001,67198.0,67197.0,0.00148]
[1772930882531,0.00022001,67198.0,67194.0,0.00490139]
[1772930882731,0.00022001,67198.0,67196.0,0.00490139]
[1772930883390,0.0744015,67203.0,67196.0,0.00490139]
[1772930885247,0.0744015,67203.0,67197.0,0.00490139]
[1772930885724,0.02532976,67202.0,67185.0,0.00490139]
[1772930885897,0.03014326,67200.0,67186.0,0.00148]
[1772930886097,0.03014326,67200.0,67186.0,0.00638139]
[1772930887095,0.03014326,67200.0,67187.0,0.00490139]
[1772930888129,0.09973562,67199.0,67187.0,0.07931982]
[1772930889242,0.09973562,67199.0,67187.0,0.07441843]
[1772930889470,0.09973562,67199.0,67188.0,0.00475127]
[1772930890483,0.07440586,67199.0,67188.0,0.00475127]
[1772930891963,0.07440586,67199.0,67187.0,0.07441843]
[1772930892569,0.0744054,67200.0,67187.0,0.07441843]
[1772930894262,0.0744054,67200.0,67187.0,0.10005104]
[1772930894462,0.07440586,67201.0,67187.0,0.10005104]
[1772930895308,0.07440586,67201.0,67187.0,0.07441843]
[1772930896419,0.07440586,67201.0,67188.0,0.0002]
[1772930897794,0.02532976,67200.0,67189.0,0.00148]
[1772930897995,0.03650563,67199.0,67189.0,0.00148]
[1772930898212,0.07440586,67201.0,67188.0,0.0002]
[1772930898415,0.02532976,67200.0,67188.0,0.0002]
[1772930898614,0.07440697,67198.0,67189.0,0.00148]
[1772930899054,0.02532976,67195.0,67189.0,0.00148]
[1772930899763,0.07440697,67198.0,67186.0,0.00148]
[1772930899764,0.01117587,67192.0,67186.0,0.00148]
[1772930900059,0.07440697,67198.0,67186.0,0.00148]
[1772930900060,0.02532976,67187.0,67186.0,0.00148]
[1772930900281,0.01117587,67184.0,67179.0,0.00032004]
[1772930900461,0.03650563,67182.0,67179.0,0.00032004]
[1772930900619,0.02532976,67182.0,67177.0,0.074592]
[1772930900819,0.01117587,67180.0,67178.0,0.00148]
[1772930901048,0.01117587,67180.0,67179.0,0.00148]
[1772930901419,0.01117587,67180.0,67179.0,0.001]
[1772930901631,0.01117587,67180.0,67179.0,0.00248]
[1772930901833,0.01117587,67180.0,67179.0,0.00148]
[1772930902233,0.01117587,67180.0,67175.0,0.07483197]
[1772930902577,0.07442916,67178.0,67164.0,0.22277365]
[1772930902736,0.01117587,67176.0,67165.0,0.00148]
[1772930902935,0.07442916,67178.0,67165.0,0.00148]
[1772930903169,0.07442916,67178.0,67165.0,0.02711261]
[1772930903760,0.07442801,67181.0,67165.0,0.02711261]
[1772930903966,0.01117587,67180.0,67165.0,0.02711261]
[1772930904714,0.07442456,67183.0,67167.0,0.02563261]
[1772930904863,0.0744183,67188.0,67167.0,0.02563261]
[1772930905064,0.07441802,67190.0,67169.0,0.02563261]
[1772930905838,0.0001619,67191.0,67170.0,0.139946]
[1772930906043,0.07457682,67191.0,67173.0,0.02563261]
[1772930906338,0.07457682,67191.0,67175.0,0.02563261]
[1772930906516,0.08575269,67191.0,67175.0,0.02563261]
[1772930906903,0.08575269,67191.0,67176.0,0.07443134]
[1772930907111,0.08575269,67191.0,67177.0,0.02711261]
[1772930907297,0.07457682,67191.0,67177.0,0.02711261]
[1772930908711,0.08575269,67191.0,67177.0,0.02711261]
[1772930909816,0.0001619,67191.0,67179.0,0.02563261]
[1772930910216,0.07440919,67196.0,67179.0,0.02563261]
[1772930911033,0.07440919,67197.0,67179.0,0.02563261]
[1772930911826,0.07480501,67200.0,67182.0,0.02563261]
[1772930912096,0.07480501,67200.0,67180.0,0.07442691]
[1772930912097,0.07480501,67200.0,67184.0,0.02563261]
[1772930912450,0.0004,67200.0,67184.0,0.02563261]
[1772930914053,0.0004,67200.0,67185.0,0.07442137]
[1772930914293,0.0004,67200.0,67186.0,0.02585926]
[1772930915294,0.0001652,67206.0,67188.0,0.02585926]
[1772930915450,0.07439715,67207.0,67190.0,0.02585926]
[1772930915859,0.07461384,67210.0,67190.0,0.02585926]
[1772930916223,0.07461384,67210.0,67191.0,0.07441472]
[1772930916428,0.07461384,67210.0,67192.0,0.02585926]
[1772930916700,0.0862977,67213.0,67194.0,0.02585926]
[1772930916899,0.0862977,67213.0,67196.0,0.02585926]
[1772930918058,0.01301081,67210.0,67191.0,0.07441472]
[1772930918331,0.02675342,67205.0,67192.0,0.00148]
[1772930918622,0.01301081,67203.0,67192.0,0.00148]
[1772930918777,0.01301081,67203.0,67189.0,0.07441472]
[1772930919149,0.01301081,67203.0,67193.0,0.00148]
[1772930920523,0.01301081,67201.0,67194.0,0.0744114]
[1772930924523,0.07440418,67201.0,67195.0,0.00148]
[1772930924739,0.01301081,67198.0,67173.0,0.22301125]
[1772930924952,0.02675342,67195.0,67180.0,0.00148]
[1772930925172,0.01301081,67193.0,67180.0,0.00148]
[1772930925377,0.02675342,67193.0,67180.0,0.00148]
[1772930925574,0.01301081,67192.0,67180.0,0.00148]
[1772930925811,0.01301081,67190.0,67180.0,0.00148]
[1772930926015,0.01301081,67187.0,67180.0,0.00148]
[1772930927130,0.01301081,67187.0,67180.0,0.00168]
[1772930928139,0.07442026,67186.0,67180.0,0.00168]
[1772930928476,0.07442026,67186.0,67180.0,0.0761062]
[1772930928662,0.07442026,67186.0,67180.0,0.00168]
[1772930929915,0.08742886,67189.0,67180.0,0.00168]
[1772930930932,0.01301081,67188.0,67180.0,0.00168]
[1772930932742,0.07441251,67193.0,67180.0,0.07610642]
[1772930932877,0.07441189,67194.0,67181.0,0.02585926]
[1772930934644,0.0744098,67196.0,67182.0,0.07442469]
[1772930934846,0.00650541,67195.0,67182.0,0.07442469]
[1772930935144,0.07440919,67196.0,67183.0,0.02585926]
[1772930935350,0.07440853,67197.0,67183.0,0.02585926]
[1772930936119,0.0001202,67198.0,67183.0,0.02585926]
[1772930936337,0.0745277,67198.0,67183.0,0.02585926]
[1772930936535,0.0745277,67198.0,67182.0,0.07442469]
[1772930936536,0.02675342,67195.0,67182.0,0.00148]
[1772930936742,0.00650541,67191.0,67182.0,0.07590457]
[1772930936953,0.00453526,67190.0,67182.0,0.00148]
[1772930937754,0.00453526,67190.0,67182.0,0.07590428]
[1772930938094,0.00453526,67190.0,67183.0,0.00148]
[1772930938512,0.00453526,67190.0,67182.0,0.07442428]
[1772930938706,0.00453526,67190.0,67184.0,0.00148]
[1772930939012,0.07441694,67189.0,67180.0,0.0002]
[1772930939208,0.00453526,67188.0,67185.0,0.00148]
[1772930939556,0.00453526,67188.0,67184.0,0.00148]
[1772930939964,0.00453526,67188.0,67180.0,0.0002]
[1772930940166,0.00453526,67188.0,67181.0,0.00148]
[1772930940589,0.00453526,67188.0,67182.0,0.00148]
[1772930941009,0.07895378,67188.0,67180.0,0.0002]
[1772930941215,0.07895378,67188.0,67181.0,0.00148]
[1772930941645,0.07895378,67188.0,67182.0,0.00148]
[1772930941792,0.07441852,67188.0,67182.0,0.00148]
[1772930941993,0.00496347,67187.0,67182.0,0.00148]
[1772930942438,0.00496347,67187.0,67183.0,0.00148]
[1772930942817,0.00496347,67187.0,67180.0,0.0002]
[1772930943010,0.00496347,67187.0,67184.0,0.00148]
[1772930944052,0.00496347,67186.0,67184.0,0.00148]
[1772930944256,0.00496347,67186.0,67180.0,0.0002]
[1772930944457,0.00496347,67186.0,67184.0,0.00148]
[1772930944830,0.00496347,67186.0,67183.0,0.00148]
[1772930945354,0.00518348,67186.0,67184.0,0.00148]
[1772930945756,0.00518348,67186.0,67182.0,0.07442461]
[1772930945963,0.00518348,67186.0,67184.0,0.00148]
[1772930946254,0.00518348,67186.0,67182.0,0.07442461]
[1772930946462,0.00518348,67186.0,67184.0,0.00148]
[1772930946840,0.00022001,67186.0,67184.0,0.00148]
[1772930947723,0.00022001,67186.0,67180.0,0.0002]
[1772930947947,0.00022001,67186.0,67181.0,0.00148]
[1772930948340,0.00022001,67186.0,67182.0,0.00148]
[1772930948556,0.00022001,67186.0,67176.0,0.07443134]
[1772930948557,0.00022001,67186.0,67163.0,0.2964504]
[1772930948756,0.07442358,67183.0,67169.0,0.00614428]
[1772930948978,0.07442358,67183.0,67170.0,0.00148]
[1772930949722,0.07442358,67183.0,67166.0,0.0744391]
[1772930949954,0.07442358,67183.0,67160.0,0.08043563]
[1772930949955,0.02483395,67179.0,67161.0,0.07911222]
[1772930950103,0.00488173,67177.0,67162.0,0.00148]
[1772930950622,0.00488173,67177.0,67162.0,0.00466428]
[1772930950779,0.07443134,67176.0,67164.0,0.07444464]
[1772930951166,0.05359553,67176.0,67164.0,0.07444464]
[1772930951308,0.05359553,67176.0,67164.0,0.07456493]
[1772930954008,0.05359553,67176.0,67166.0,0.00466428]
[1772930954203,0.05359553,67176.0,67164.0,0.07476493]
[1772930954405,0.05847726,67176.0,67164.0,0.00148]
[1772930955223,0.07443134,67177.0,67165.0,0.00466428]